bitfinex-derivatives/quotes_BTCF0:USTF0_20250915
["timestamp","ask_amount","ask_price","bid_price","bid_amount"]
[1757917774722,0.48810315,116480.0,116470.0,0.17133874]
[1757917775317,0.48810315,116480.0,116470.0,0.13133874]
[1757917775711,0.48816788,116480.0,116460.0,0.91393959]
[1757917775921,0.0363,116470.0,116460.0,0.91393959]
[1757917776118,0.05919464,116470.0,116460.0,0.91393959]
[1757917776822,0.05919464,116470.0,116460.0,0.91493959]
[1757917777221,0.05919464,116470.0,116460.0,0.91593959]
[1757917778323,0.05919464,116470.0,116460.0,0.13337959]
[1757917778521,0.05919464,116470.0,116460.0,0.91521959]
[1757917779422,0.05919464,116470.0,116460.0,0.78384]
[1757917779622,0.05919464,116470.0,116460.0,0.91521959]
[1757917780919,0.05919464,116470.0,116460.0,1.54521959]
[1757917782524,0.05919464,116470.0,116460.0,1.41384]
[1757917782720,0.05919464,116470.0,116460.0,0.76337959]
[1757917782921,0.05919464,116470.0,116460.0,1.41356]
[1757917788824,0.05919464,116470.0,116460.0,1.36356]
[1757917790924,0.05919464,116470.0,116460.0,0.582]
[1757917791131,0.05919464,116470.0,116460.0,1.36384]
[1757917791831,0.05919464,116470.0,116460.0,1.36376]
[1757917792234,0.05919464,116470.0,116460.0,0.582]
[1757917792427,0.05919464,116470.0,116460.0,1.36376]
[1757917792929,0.05919464,116470.0,116460.0,1.36372]
[1757917793526,0.05919464,116470.0,116460.0,1.36368]
[1757917797534,0.05919464,116470.0,116460.0,1.36344]
[1757917799334,0.05919464,116470.0,116460.0,0.582]
[1757917799536,0.05919464,116470.0,116460.0,1.3632]
[1757917800237,0.05919464,116470.0,116460.0,0.582]
[1757917800743,0.05919464,116470.0,116460.0,1.36316]
[1757917802240,0.41999464,116470.0,116460.0,1.36316]
[1757917802543,0.66999464,116470.0,116460.0,0.052]
[1757917803942,0.66999464,116470.0,116460.0,0.051]
[1757917804343,0.66999464,116470.0,116460.0,0.05]
[1757917806144,0.66999464,116470.0,116450.0,0.67744745]
[1757917806341,0.03459,116460.0,116450.0,1.24744745]
[1757917806644,0.03582464,116460.0,116450.0,1.60824745]
[1757917807448,0.03582464,116460.0,116450.0,1.60924745]
[1757917807747,0.03582464,116460.0,116450.0,1.91024745]
[1757917810548,0.03582464,116460.0,116450.0,2.19024745]
[1757917811144,0.01317,116470.0,116460.0,0.3608]
[1757917811348,0.01317,116470.0,116460.0,1.22089744]
[1757917811542,0.01317,116470.0,116460.0,1.48365662]
[1757917814952,0.01317,116470.0,116460.0,1.46355918]
[1757917815842,0.01317,116470.0,116460.0,1.48354195]
[1757917817248,0.01317,116470.0,116460.0,1.73354195]
[1757917817452,0.01317,116470.0,116460.0,1.83059328]
[1757917818451,0.01317,116470.0,116460.0,2.59125051]
[1757917820355,0.01351,116480.0,116460.0,2.59125051]
[1757917820557,0.01351,116480.0,116460.0,2.36110738]
[1757917821353,0.01293,116470.0,116460.0,2.36110738]
[1757917822446,0.01293,116470.0,116460.0,1.3177082]
[1757917822653,0.01293,116470.0,116460.0,2.36106738]
[1757917824054,0.01351,116480.0,116460.0,2.61106738]
[1757917824354,0.01351,116480.0,116460.0,2.36106738]
[1757917824853,0.01293,116470.0,116460.0,2.62766738]
[1757917825451,0.01293,116470.0,116460.0,2.62866738]
[1757917825853,0.01293,116470.0,116460.0,2.62966738]
[1757917827457,0.01293,116470.0,116460.0,2.62866738]
[1757917827657,0.01293,116470.0,116460.0,2.62966738]
[1757917827857,0.01293,116470.0,116460.0,1.84906738]
[1757917828258,0.01293,116470.0,116460.0,2.62962738]
[1757917828763,0.01351,116480.0,116460.0,2.09906738]
[1757917829059,0.01351,116480.0,116470.0,0.78056]
[1757917829355,0.01351,116480.0,116470.0,1.71056]
[1757917830159,0.01351,116480.0,116470.0,0.93]
[1757917830461,0.01351,116480.0,116470.0,1.71056]
[1757917830759,0.01351,116480.0,116470.0,1.97716]
[1757917831862,0.01351,116480.0,116470.0,1.1966]
[1757917832061,0.01351,116480.0,116470.0,1.97712]
[1757917838064,0.01351,116480.0,116470.0,1.1966]
[1757917838263,0.01351,116480.0,116470.0,1.97784]
[1757917838969,0.01351,116480.0,116470.0,1.1966]
[1757917839471,0.01351,116480.0,116470.0,1.97792]
[1757917840370,0.01351,116480.0,116470.0,2.24057556]
[1757917842771,0.01351,116480.0,116470.0,1.1966]
[1757917842972,0.01351,116480.0,116470.0,2.24049556]
[1757917846172,0.01351,116480.0,116470.0,2.10912778]
[1757917847663,0.01351,116480.0,116470.0,2.24045556]
[1757917850372,0.03668758,116480.0,116470.0,2.24045556]
[1757917850672,0.01351,116480.0,116470.0,2.24045556]
[1757917851368,0.03669363,116480.0,116470.0,2.24045556]
[1757917852669,0.03669363,116480.0,116470.0,1.9778]
[1757917852871,0.03669363,116480.0,116470.0,2.24045556]
[1757917853770,0.03669363,116480.0,116470.0,1.32792778]
[1757917853972,0.03669363,116480.0,116470.0,2.10852778]
[1757917857881,0.03669363,116480.0,116470.0,2.23985556]
[1757917860379,0.03669363,116480.0,116470.0,1.97325556]
[1757917863086,0.03669363,116480.0,116470.0,1.84192778]
[1757917864074,0.03669363,116480.0,116470.0,2.29192778]
[1757917868480,0.16802141,116480.0,116470.0,1.38]
[1757917868672,0.03669363,116480.0,116470.0,2.29184778]
[1757917871985,0.03669363,116480.0,116470.0,2.42317556]
[1757917872875,0.03669363,116480.0,116470.0,2.16052]
[1757917873184,0.03669363,116480.0,116470.0,2.29184778]
[1757917875087,0.03669363,116480.0,116470.0,2.42317556]
[1757917882886,0.03669363,116480.0,116470.0,2.16052]
[1757917883189,0.03669363,116480.0,116470.0,2.42317556]
[1757917883790,0.03669363,116480.0,116470.0,1.97317556]
[1757917884388,0.03669363,116480.0,116470.0,1.19265556]
[1757917884588,0.03669363,116480.0,116470.0,1.84200778]
[1757917884794,0.03669363,116480.0,116470.0,1.06132778]
[1757917885090,0.03669363,116480.0,116470.0,1.84200778]
[1757917885987,0.03669363,116480.0,116470.0,1.06132778]
[1757917886188,0.03669363,116480.0,116470.0,1.84188778]
[1757917887886,0.03669363,116480.0,116470.0,1.97321556]
[1757917890092,0.03669363,116480.0,116470.0,1.84188778]
[1757917890491,0.03669363,116480.0,116470.0,1.06132778]
[1757917890691,0.03669363,116480.0,116470.0,1.84200778]
[1757917891588,0.03669363,116480.0,116470.0,1.71068]
[1757917891783,0.05827363,116480.0,116470.0,0.93]
[1757917891987,0.05827363,116480.0,116470.0,1.84200778]
[1757917892590,0.05827363,116480.0,116470.0,1.71068]
[1757917892794,0.05827363,116480.0,116470.0,1.84200778]
[1757917893391,0.05827363,116480.0,116470.0,0.93]
[1757917893596,0.05827363,116480.0,116470.0,1.06132778]
[1757917893795,0.05827363,116480.0,116470.0,1.84244778]
[1757917894686,0.05827363,116480.0,116470.0,1.71112]
[1757917895199,0.05827363,116480.0,116470.0,1.84244778]
[1757917895784,0.05827363,116480.0,116470.0,1.84247301]
[1757917896486,0.05827363,116480.0,116470.0,0.93]
[1757917896697,0.05827363,116480.0,116470.0,1.71132]
[1757917896894,0.05827363,116480.0,116470.0,1.37132]
[1757917897094,0.05827363,116480.0,116470.0,1.50267301]
[1757917897294,0.05827363,116480.0,116470.0,1.37132]
[1757917897494,0.05827363,116480.0,116470.0,1.50267301]
[1757917900491,0.05827363,116480.0,116470.0,1.37132]
[1757917900695,0.05827363,116480.0,116470.0,1.50267301]
[1757917901201,0.05827363,116480.0,116470.0,1.37132]
[1757917901402,0.05827363,116480.0,116470.0,1.50267301]
[1757917902100,0.05827363,116480.0,116470.0,1.37132]
[1757917902991,0.05827363,116480.0,116470.0,1.50267301]
[1757917903197,0.05827363,116480.0,116470.0,1.37132]
[1757917903598,0.05827363,116480.0,116470.0,0.59]
[1757917903796,0.01395,116440.0,116430.0,9.716e-05]
[1757917903996,0.03528,116440.0,116430.0,1.4384179]
[1757917904301,0.01395,116440.0,116430.0,1.30706489]
[1757917904502,0.01395,116440.0,116430.0,0.51886489]
[1757917904804,0.03528,116440.0,116430.0,1.30698489]
[1757917904997,0.03528,116440.0,116430.0,0.86994489]
[1757917905302,0.03528,116440.0,116430.0,0.93120074]
[1757917905699,0.03528,116440.0,116430.0,0.99830434]
[1757917906298,0.03528,116440.0,116430.0,1.00174434]
[1757917907104,0.03528,116440.0,116430.0,0.87039133]
[1757917907306,0.03528,116440.0,116430.0,1.00174434]
[1757917907802,0.03528,116440.0,116430.0,0.21322434]
[1757917907999,0.03528,116440.0,116430.0,0.87039133]
[1757917908202,0.03528,116440.0,116430.0,1.58174434]
[1757917909206,0.03528,116440.0,116430.0,1.45039133]
[1757917909398,0.03528,116440.0,116430.0,0.66187133]
[1757917909606,0.03528,116440.0,116430.0,0.80348773]
[1757917910506,0.03528,116440.0,116430.0,0.80888773]
[1757917910698,0.03528,116440.0,116430.0,0.80588773]
[1757917910899,0.03528,116440.0,116430.0,0.80788773]
[1757917911605,0.03528,116440.0,116430.0,0.80488773]
[1757917911801,0.03528,116440.0,116430.0,0.80688773]
[1757917912799,0.03528,116440.0,116430.0,1.55824074]
[1757917913399,0.03528,116440.0,116430.0,1.42688773]
[1757917914607,0.41663301,116440.0,116430.0,0.79832]
[1757917915908,0.28528,116440.0,116430.0,0.79832]
[1757917916108,0.41663301,116440.0,116430.0,0.79832]
[1757917916304,0.41663301,116440.0,116430.0,1.41832]
[1757917916698,0.28528,116440.0,116430.0,1.41832]
[1757917916898,0.41663301,116440.0,116430.0,1.41832]
[1757917917302,0.43989873,116440.0,116430.0,1.41832]
[1757917917508,0.30854572,116440.0,116430.0,1.41832]
[1757917917808,0.43989873,116440.0,116430.0,1.41832]
[1757917918200,0.43989873,116440.0,116430.0,0.004]
[1757917918407,0.43989873,116440.0,116430.0,0.7968]
[1757917918603,0.01199,116420.0,116410.0,1.6488]
[1757917918807,0.01199,116420.0,116410.0,2.44556]
[1757917919210,0.01199,116420.0,116410.0,2.44572]
[1757917919402,0.01199,116420.0,116410.0,1.6488]
[1757917919709,0.16631301,116420.0,116410.0,0.79684]
[1757917920009,0.03496,116420.0,116410.0,0.79884]
[1757917920206,0.18957362,116420.0,116410.0,0.79884]
[1757917920411,0.43957368,116420.0,116410.0,0.002]
[1757917920609,0.43957423,116420.0,116410.0,0.80208]
[1757917921009,0.43957423,116420.0,116410.0,0.005]
[1757917921309,0.43957423,116420.0,116370.0,1.64932]
[1757917921310,0.01399,116380.0,116370.0,1.64932]
[1757917921511,0.01399,116380.0,116370.0,2.32019301]
[1757917921713,0.01299,116380.0,116370.0,2.32019301]
[1757917921905,0.01199,116380.0,116370.0,2.32019301]
[1757917922210,0.01199,116380.0,116370.0,2.13886236]
[1757917922405,0.01199,116380.0,116370.0,2.00750935]
[1757917922805,0.01199,116380.0,116370.0,2.14086236]
[1757917923216,0.01199,116380.0,116370.0,2.27221537]
[1757917923411,0.01199,116380.0,116370.0,2.52221537]
[1757917923915,0.01199,116380.0,116370.0,2.55221537]
[1757917924218,0.01199,116380.0,116370.0,3.49561447]
[1757917924809,0.01199,116380.0,116370.0,3.23290845]
[1757917925008,0.01199,116380.0,116370.0,3.58151627]
[1757917925315,0.01399,116400.0,116370.0,3.79879838]
[1757917925506,0.01399,116420.0,116390.0,0.0858829]
[1757917925704,0.03722046,116420.0,116400.0,0.80192]
[1757917925910,0.03722046,116420.0,116400.0,1.65192]
[1757917926115,0.01288,116410.0,116400.0,1.65192]
[1757917926714,0.01399,116420.0,116400.0,2.14724232]
[1757917928117,0.01499,116420.0,116400.0,2.14724232]
[1757917928320,0.01499,116420.0,116400.0,2.06136262]
[1757917928818,0.01399,116420.0,116400.0,1.25944262]
[1757917929115,0.01288,116410.0,116400.0,1.00944262]
[1757917929319,0.01288,116410.0,116400.0,1.25944262]
[1757917929518,0.01288,116410.0,116400.0,1.72202073]
[1757917929716,0.01288,116410.0,116400.0,1.72230073]
[1757917929922,0.0343,116410.0,116400.0,0.91982073]
[1757917930118,0.05754976,116410.0,116400.0,1.72230073]
[1757917930417,0.05754976,116410.0,116400.0,1.85365374]
[1757917930719,0.0343,116410.0,116400.0,1.78383301]
[1757917931321,0.0363,116410.0,116400.0,1.78383301]
[1757917931521,0.0373,116410.0,116400.0,1.78383301]
[1757917931717,0.01588,116410.0,116400.0,1.78383301]
[1757917933121,0.01588,116410.0,116400.0,1.91518602]
[1757917933321,0.01588,116410.0,116400.0,1.65248]
[1757917933521,0.01588,116410.0,116400.0,1.78383301]
[1757917935023,0.01588,116410.0,116400.0,1.78295301]
[1757917935522,0.01588,116410.0,116400.0,1.98322689]
[1757917936422,0.01588,116410.0,116400.0,1.98294689]
[1757917936627,0.01588,116410.0,116400.0,1.85159388]
[1757917936922,0.01588,116410.0,116400.0,1.05027388]
[1757917937116,0.01588,116410.0,116400.0,1.85147388]
[1757917937316,0.01588,116410.0,116400.0,1.85139388]
[1757917937523,0.03843109,116410.0,116400.0,1.85139388]
[1757917938223,0.03843109,116410.0,116400.0,1.72004087]
[1757917938423,0.03843109,116410.0,116400.0,1.71980087]
[1757917938622,0.03843109,116410.0,116400.0,1.85115388]
[1757917940924,0.03843109,116410.0,116400.0,1.71980087]
[1757917941120,0.03843109,116410.0,116400.0,1.85115388]
[1757917941320,0.03843109,116410.0,116400.0,0.91892087]
[1757917941520,0.03843109,116410.0,116400.0,1.85075388]
[1757917941717,0.03843109,116410.0,116400.0,1.85063388]
[1757917942627,0.03843109,116410.0,116400.0,1.56063388]
[1757917942822,0.03843109,116410.0,116400.0,0.76027388]
[1757917943128,0.05985109,116410.0,116400.0,1.88055388]
[1757917944228,0.05985109,116410.0,116400.0,1.08027388]
[1757917944429,0.05985109,116410.0,116400.0,1.88027388]
[1757917944728,0.05985109,116410.0,116400.0,1.08027388]
[1757917945029,0.05985109,116410.0,116400.0,1.88003388]
[1757917945524,0.05985109,116410.0,116400.0,1.08027388]
[1757917945729,0.30985109,116410.0,116400.0,0.88]
[1757917945924,0.4412041,116410.0,116400.0,1.67944]
[1757917946125,0.30985109,116410.0,116400.0,1.67944]
[1757917946428,0.30988601,116410.0,116400.0,1.67944]
[1757917947831,0.30988601,116410.0,116400.0,1.35944]
[1757917949538,0.30988601,116410.0,116400.0,1.49079301]
[1757917950328,0.30988601,116410.0,116400.0,1.35944]
[1757917950530,0.30988601,116410.0,116400.0,1.49079301]
[1757917951428,0.30988601,116410.0,116400.0,1.54079301]
[1757917953740,0.30988601,116410.0,116400.0,1.40944]
[1757917954630,0.30988601,116410.0,116400.0,0.61]
[1757917954939,0.30988601,116410.0,116400.0,1.358]
[1757917955834,0.30988601,116410.0,116400.0,1.48951826]
[1757917956242,0.30988601,116410.0,116400.0,1.358]
[1757917956437,0.30988601,116410.0,116400.0,1.48951826]
[1757917959139,0.30988601,116410.0,116400.0,1.62103652]
[1757917959339,0.05988601,116410.0,116400.0,1.62103652]
[1757917959635,0.05988601,116410.0,116400.0,1.358]
[1757917959837,0.44140427,116410.0,116400.0,0.56]
[1757917960037,0.44140427,116410.0,116400.0,1.48847826]
[1757917961136,0.30988601,116410.0,116400.0,1.48847826]
[1757917961336,0.05988601,116410.0,116400.0,1.61999652]
[1757917962138,0.05988601,116410.0,116400.0,1.48847826]
[1757917962434,0.05988601,116410.0,116400.0,1.61999652]
[1757917962739,0.03846601,116410.0,116400.0,1.94999652]
[1757917963539,0.03846601,116410.0,116400.0,1.68696]
[1757917964037,0.03846601,116410.0,116400.0,1.94999652]
[1757917968842,0.03846601,116410.0,116400.0,1.68696]
[1757917969045,0.03846601,116410.0,116400.0,1.94999652]
[1757917969848,0.03846601,116410.0,116400.0,1.68696]
[1757917970148,0.03846601,116410.0,116400.0,1.94999652]
[1757917970847,0.03846601,116410.0,116400.0,1.15303652]
[1757917971150,0.03846601,116410.0,116400.0,1.94847652]
[1757917971648,0.03846601,116410.0,116400.0,1.15303652]
[1757917971848,0.03846601,116410.0,116400.0,1.94827652]
[1757917975653,0.03846601,116410.0,116400.0,1.15303652]
[1757917975853,0.03846601,116410.0,116400.0,1.94759652]
[1757917977154,0.03846601,116410.0,116400.0,1.05759652]
[1757917978155,0.03846601,116410.0,116400.0,1.13759652]
[1757917978451,0.06156601,116410.0,116400.0,0.34303652]
[1757917978653,0.06156601,116410.0,116400.0,1.13723652]
[1757917978954,0.06156601,116410.0,116400.0,1.13707652]
[1757917980454,0.06156601,116410.0,116400.0,0.87404]
[1757917980653,0.06156601,116410.0,116400.0,1.13707652]
[1757917981956,0.06156601,116410.0,116400.0,0.21151826]
[1757917982158,0.19308427,116410.0,116400.0,1.13671652]
[1757917982850,0.06156601,116410.0,116400.0,1.05671652]
[1757917983055,0.06156601,116410.0,116400.0,1.92671652]
[1757917984457,0.06156601,116410.0,116400.0,1.66368]
[1757917986761,0.06156601,116410.0,116400.0,1.92671652]
[1757917986961,0.06156601,116410.0,116400.0,1.66368]
[1757917987164,0.19308427,116410.0,116400.0,0.87]
[1757917987373,0.19308427,116410.0,116400.0,1.79471826]
[1757917987765,0.19308427,116410.0,116400.0,1.00151826]
[1757917987969,0.19308427,116410.0,116400.0,0.53]
[1757917988170,0.19308427,116410.0,116400.0,1.3232]
[1757917989372,0.19308427,116410.0,116400.0,0.53]
[1757917989671,0.19308427,116410.0,116400.0,1.32316]
[1757917990162,0.19308427,116410.0,116390.0,0.49231826]
[1757917990163,0.03516,116400.0,116390.0,0.3608]
[1757917990368,0.05774601,116400.0,116390.0,2.00392]
[1757917990769,0.05774601,116400.0,116390.0,2.00372]
[1757917991272,0.41854601,116400.0,116390.0,1.36292]
[1757917991677,0.41954601,116400.0,116390.0,1.36292]
[1757917992369,0.66954601,116400.0,116390.0,1.36292]
[1757917993268,0.67796028,116400.0,116390.0,1.36292]
[1757917993871,0.74699794,116400.0,116390.0,1.36292]
[1757917994277,0.67796028,116400.0,116390.0,1.36292]
[1757917996381,0.67796028,116400.0,116390.0,0.79292]
[1757917996582,0.66954601,116400.0,116390.0,0.79292]
[1757917999083,0.73951787,116400.0,116390.0,0.79292]
[1757917999781,0.74151787,116400.0,116390.0,0.79292]
[1757917999979,0.75017913,116400.0,116390.0,0.79292]
[1757918000177,0.75317913,116400.0,116390.0,0.79292]
[1757918000377,0.013,116390.0,116380.0,0.3608]
[1757918000577,0.03516,116390.0,116380.0,1.67296]
[1757918001487,0.41845497,116390.0,116380.0,1.31216]
[1757918001872,0.42145497,116390.0,116380.0,1.31216]
[1757918002075,0.42145497,116390.0,116380.0,1.44367826]
[1757918002383,0.03816,116390.0,116380.0,1.80447826]
[1757918002577,0.03816,116390.0,116380.0,2.05447826]
[1757918002782,0.018,116390.0,116380.0,2.38447826]
[1757918004986,0.018,116390.0,116380.0,2.25296]
[1757918005889,0.018,116390.0,116380.0,2.38447826]
[1757918008187,0.018,116390.0,116380.0,2.25296]
[1757918008381,0.018,116390.0,116380.0,2.38447826]
[1757918008586,0.018,116390.0,116380.0,2.13447826]
[1757918009491,0.018,116390.0,116380.0,2.00296]
[1757918009692,0.018,116390.0,116380.0,1.34231826]
[1757918009893,0.018,116390.0,116380.0,1.80363826]
[1757918012601,0.04050241,116390.0,116380.0,1.80363826]
[1757918013490,0.04050241,116390.0,116380.0,1.67212]
[1757918013692,0.04050241,116390.0,116380.0,1.80363826]
[1757918014589,0.03516,116370.0,116350.0,0.3608]
[1757918014795,0.03516,116370.0,116350.0,1.10078883]
[1757918014796,0.03516,116360.0,116350.0,1.10078883]
[1757918014992,0.013,116360.0,116350.0,1.86891194]
[1757918015198,0.013,116360.0,116350.0,2.10891194]
[1757918015792,0.013,116360.0,116350.0,2.10991194]
[1757918016095,0.014,116360.0,116350.0,2.10991194]
[1757918017194,0.015,116360.0,116350.0,2.10991194]
[1757918018096,0.015,116360.0,116350.0,2.10891194]
[1757918020394,0.015,116360.0,116350.0,2.10871194]
[1757918020694,0.015,116360.0,116350.0,1.31747194]
[1757918020895,0.015,116360.0,116350.0,2.10863194]
[1757918024499,0.015,116360.0,116350.0,1.31747194]
[1757918024796,0.015,116360.0,116350.0,2.10819194]
[1757918025500,0.015,116360.0,116350.0,2.10815194]
[1757918025800,0.015,116360.0,116350.0,1.31747194]
[1757918025999,0.015,116360.0,116350.0,2.23987016]
[1757918026697,0.015,116360.0,116350.0,1.44907016]
[1757918026888,0.015,116360.0,116350.0,2.23987016]
[1757918027292,0.015,116360.0,116350.0,2.10827194]
[1757918027493,0.015,116360.0,116350.0,2.23987016]
[1757918028703,0.015,116360.0,116350.0,2.10827194]
[1757918029001,0.015,116360.0,116350.0,2.23987016]
[1757918029194,0.015,116360.0,116350.0,2.10827194]
[1757918029696,0.015,116360.0,116350.0,2.10975194]
[1757918030491,0.265,116360.0,116350.0,1.38086879]
[1757918030697,0.265,116360.0,116350.0,2.17286879]
[1757918031296,0.26757,116360.0,116350.0,2.17286879]
[1757918032098,0.26757,116360.0,116350.0,2.17262879]
[1757918032693,0.26757,116360.0,116350.0,1.24927057]
[1757918032899,0.26757,116360.0,116350.0,2.04103057]
[1757918033102,0.26757,116360.0,116350.0,2.04091057]
[1757918033397,0.29042,116360.0,116350.0,1.01927057]
[1757918033604,0.29042,116360.0,116350.0,1.81087057]
[1757918034401,0.29042,116360.0,116350.0,1.01927057]
[1757918034606,0.29042,116360.0,116350.0,1.81075057]
[1757918038408,0.31291508,116360.0,116350.0,1.81075057]
[1757918039504,0.29042,116360.0,116350.0,1.81075057]
[1757918040106,0.3129159,116360.0,116350.0,1.81075057]
[1757918040306,0.0629159,116360.0,116350.0,1.94234879]
[1757918040506,0.04042,116360.0,116350.0,1.94234879]
[1757918041103,0.04042,116360.0,116350.0,1.01927057]
[1757918041410,0.04042,116360.0,116350.0,1.81007057]
[1757918041607,0.01757,116360.0,116350.0,1.94166879]
[1757918042605,0.01757,116360.0,116350.0,2.06007057]
[1757918042806,0.01757,116360.0,116350.0,2.35007057]
[1757918043013,0.01757,116360.0,116350.0,2.44946635]
[1757918044121,0.01757,116360.0,116350.0,2.53538295]
[1757918044306,0.01757,116360.0,116350.0,2.71594635]
[1757918046312,0.01757,116360.0,116350.0,2.80186295]
[1757918046518,0.00457,116360.0,116350.0,2.80186295]
[1757918047918,0.00457,116360.0,116350.0,2.01118295]
[1757918048112,0.01736,116360.0,116350.0,2.80166345]
[1757918048313,0.01736,116360.0,116350.0,2.01118345]
[1757918048612,0.01736,116360.0,116350.0,2.80166345]
[1757918048918,0.01736,116360.0,116350.0,2.71574635]
[1757918049122,0.01736,116360.0,116350.0,2.80166345]
[1757918050521,0.01736,116360.0,116350.0,1.92526635]
[1757918050713,0.01736,116360.0,116350.0,2.71550635]
[1757918050921,0.01736,116360.0,116350.0,2.71546635]
[1757918051421,0.01736,116360.0,116350.0,2.46542635]
[1757918051927,0.01736,116360.0,116350.0,2.46530635]
[1757918052618,0.01736,116360.0,116350.0,2.36591057]
[1757918053526,0.01736,116360.0,116350.0,2.45182797]
[1757918053721,0.01736,116360.0,116350.0,2.36591057]
[1757918053921,0.01736,116360.0,116350.0,1.57587057]
[1757918054317,0.01736,116360.0,116350.0,1.70746879]
[1757918054822,0.26736,116360.0,116350.0,1.57587057]
[1757918055222,0.26736,116360.0,116350.0,2.36615057]
[1757918056117,0.26736,116360.0,116350.0,2.09955057]
[1757918056522,0.26736,116360.0,116350.0,1.30927057]
[1757918056726,0.26736,116360.0,116350.0,2.09935057]
[1757918058530,0.26736,116360.0,116350.0,1.75935057]
[1757918060329,0.26736,116360.0,116350.0,1.39855057]
[1757918060528,0.29056,116360.0,116350.0,0.60847057]
[1757918060722,0.29056,116360.0,116350.0,1.39811057]
[1757918061932,0.29056,116360.0,116350.0,1.38964]
[1757918065334,0.65136,116360.0,116350.0,1.39806761]
[1757918065627,0.6738715,116360.0,116350.0,1.38932]
[1757918066832,0.6758715,116360.0,116350.0,1.38932]
[1757918067328,0.03599,116330.0,116320.0,0.38071089]
[1757918067525,0.03599,116330.0,116320.0,1.731076]
[1757918067933,0.03599,116330.0,116320.0,1.95126911]
[1757918068231,0.03599,116330.0,116320.0,0.02860205]
[1757918068431,0.03599,116330.0,116320.0,1.17828205]
[1757918068833,0.03599,116330.0,116320.0,1.18028205]
[1757918069329,0.03599,116330.0,116320.0,0.81279089]
[1757918069730,0.03599,116330.0,116320.0,0.81275089]
[1757918070234,0.03699,116330.0,116320.0,0.02191089]
[1757918070428,0.03699,116330.0,116320.0,0.7908]
[1757918070625,0.03899,116330.0,116320.0,0.7888]
[1757918071232,0.04156,116330.0,116320.0,0.7888]
[1757918072229,0.01836,116330.0,116320.0,1.7396]
[1757918072530,0.01836,116330.0,116320.0,1.2808]
[1757918072736,0.01836,116330.0,116320.0,2.0694]
[1757918073037,0.01836,116330.0,116320.0,1.1494]
[1757918073434,0.01836,116330.0,116320.0,1.28099822]
[1757918073835,0.01836,116330.0,116320.0,2.17099822]
[1757918076733,0.01836,116330.0,116320.0,1.2508]
[1757918077036,0.01836,116330.0,116320.0,2.03936]
[1757918077833,0.01836,116330.0,116320.0,2.17105998]
[1757918079138,0.01836,116330.0,116320.0,2.17069998]
[1757918080938,0.01836,116330.0,116320.0,2.17053998]
[1757918081443,0.01836,116330.0,116320.0,1.52973998]
[1757918081941,0.04137,116330.0,116320.0,1.52965998]
[1757918082840,0.04137,116330.0,116320.0,1.39792]
[1757918084242,0.04137,116330.0,116320.0,0.61]
[1757918084439,0.06386962,116330.0,116320.0,0.61]
[1757918084644,0.06386962,116330.0,116320.0,1.39764]
[1757918085742,0.06386962,116330.0,116320.0,1.52933998]
[1757918085935,0.06386962,116330.0,116320.0,1.52965998]
[1757918086945,0.06386962,116330.0,116320.0,1.52957998]
[1757918087546,0.06386962,116330.0,116320.0,0.74169998]
[1757918087746,0.06386962,116330.0,116320.0,1.52937998]
[1757918088849,0.06386962,116330.0,116320.0,1.89017998]
[1757918089048,0.04137,116330.0,116320.0,1.89017998]
[1757918089346,0.04137,116330.0,116320.0,1.89001998]
[1757918089547,0.04137,116330.0,116320.0,1.10249998]
[1757918089748,0.04137,116330.0,116320.0,1.89001998]
[1757918090044,0.04137,116330.0,116320.0,1.75832]
[1757918090250,0.04137,116330.0,116320.0,1.88997998]
[1757918090447,0.04137,116330.0,116320.0,1.10249998]
[1757918090752,0.04137,116330.0,116320.0,1.88989998]
[1757918092048,0.04137,116330.0,116320.0,1.10249998]
[1757918092353,0.04137,116330.0,116320.0,0.61]
[1757918092746,0.04137,116330.0,116320.0,1.39788]
[1757918093252,0.06385216,116330.0,116320.0,1.39788]
[1757918094149,0.06385216,116330.0,116320.0,0.61]
[1757918094349,0.06385216,116330.0,116320.0,1.39788]
[1757918094550,0.06385216,116330.0,116320.0,0.61]
[1757918094854,0.04137,116330.0,116320.0,1.39788]
[1757918095052,0.04137,116330.0,116320.0,0.61]
[1757918095354,0.04137,116330.0,116320.0,1.39804]
[1757918095355,0.42465048,116330.0,116320.0,1.39804]
[1757918096345,0.42465048,116330.0,116320.0,0.61]
[1757918096550,0.03613,116320.0,116310.0,0.78824]
[1757918096853,0.03613,116310.0,116300.0,0.38663638]
[1757918097156,0.03613,116310.0,116300.0,1.77637398]
[1757918097459,0.01388,116300.0,116290.0,2.01128]
[1757918097656,0.01388,116300.0,116290.0,3.48265998]
[1757918097954,0.01388,116300.0,116290.0,3.60096]
[1757918098151,0.01388,116300.0,116290.0,3.91096]
[1757918098351,0.01388,116300.0,116290.0,3.60096]
[1757918098655,0.01388,116300.0,116290.0,3.93096]
[1757918099450,0.01388,116300.0,116290.0,3.93296]
[1757918099954,0.01488,116300.0,116290.0,3.93296]
[1757918100156,0.01488,116300.0,116290.0,3.93096]
[1757918100353,0.01688,116300.0,116290.0,3.93096]
[1757918100658,0.01945,116300.0,116290.0,3.93096]
[1757918100859,0.01945,116300.0,116290.0,3.93952959]
[1757918104556,0.01945,116300.0,116290.0,4.02549249]
[1757918104557,0.00557,116300.0,116290.0,4.02549249]
[1757918104758,0.00557,116300.0,116290.0,4.12213424]
[1757918106560,0.00457,116300.0,116290.0,4.12213424]
[1757918106858,0.01312,116310.0,116300.0,0.13169998]
[1757918107054,0.01312,116310.0,116300.0,1.33249998]
[1757918107358,0.01312,116310.0,116300.0,1.41845548]
[1757918107748,0.01312,116320.0,116300.0,1.41845548]
[1757918107957,0.01312,116320.0,116310.0,1.152]
[1757918108255,0.01312,116320.0,116310.0,2.012]
[1757918109654,0.01512,116320.0,116310.0,2.012]
[1757918111151,0.01512,116320.0,116310.0,1.2208]
[1757918111356,0.01512,116320.0,116310.0,2.01168]
[1757918112962,0.01512,116320.0,116310.0,1.2208]
[1757918113163,0.01512,116320.0,116310.0,2.01148]
[1757918113465,0.03777139,116320.0,116310.0,2.01136]
[1757918114565,0.03777139,116320.0,116310.0,1.2208]
[1757918114761,0.03777139,116320.0,116310.0,2.01128]
[1757918114961,0.03777139,116320.0,116310.0,1.2208]